bitfinex/quotes_BTCUSD_20241128
["timestamp","ask_amount","ask_price","bid_price","bid_amount"]
[1732819295940,0.0214789,95289.0,95281.0,0.94233274]
[1732819296404,0.0214789,95289.0,95281.0,0.93633274]
[1732819296858,0.0214789,95289.0,95281.0,0.94233274]
[1732819297346,0.0214789,95289.0,95281.0,0.5307061]
[1732819297568,0.0214789,95289.0,95281.0,0.5397061]
[1732819298266,0.0214789,95289.0,95281.0,0.5307061]
[1732819298494,0.0214789,95289.0,95288.0,0.104945]
[1732819298714,0.0214789,95289.0,95288.0,0.23264731]
[1732819298926,0.0214789,95289.0,95288.0,0.2932466]
[1732819299419,0.0214789,95289.0,95288.0,0.26024468]
[1732819299664,0.0214789,95289.0,95288.0,0.29981028]
[1732819299879,0.0214789,95289.0,95288.0,0.30581028]
[1732819300532,0.0214789,95289.0,95288.0,0.30957179]
[1732819300749,0.0214789,95289.0,95288.0,0.2992466]
[1732819300962,0.0214789,95289.0,95288.0,0.26624468]
[1732819301180,0.0214789,95289.0,95288.0,0.30581026]
[1732819301401,0.0214789,95289.0,95288.0,0.71692182]
[1732819301402,0.0223402,95289.0,95288.0,0.71692182]
[1732819301611,0.0223402,95289.0,95288.0,0.70435816]
[1732819302016,0.0223402,95289.0,95288.0,0.71904766]
[1732819302484,0.0107531,95304.0,95289.0,0.023]
[1732819302724,0.0008617,95304.0,95303.0,0.104928]
[1732819302951,0.0008617,95304.0,95303.0,0.20777321]
[1732819304336,0.0008617,95304.0,95303.0,0.43952515]
[1732819304808,0.0008617,95304.0,95303.0,0.44852515]
[1732819305054,0.0008617,95304.0,95303.0,0.40216632]
[1732819305304,0.0008617,95304.0,95303.0,0.21677321]
[1732819306431,0.0008617,95304.0,95303.0,0.21877321]
[1732819306716,0.0008617,95304.0,95303.0,0.46787321]
[1732819306941,0.0008217,95304.0,95303.0,0.90929648]
[1732819307167,0.0008217,95304.0,95303.0,0.49866101]
[1732819307390,0.0008217,95304.0,95303.0,0.48766101]
[1732819307824,0.0008217,95304.0,95303.0,0.24977513]
[1732819308043,0.0008217,95304.0,95303.0,0.61807991]
[1732819308266,0.00143959,95304.0,95303.0,0.20777321]
[1732819308481,0.00143959,95304.0,95303.0,0.21863007]
[1732819308692,0.00143959,95304.0,95303.0,0.21677321]
[1732819308909,0.00143959,95304.0,95303.0,0.21877321]
[1732819309147,0.00143959,95304.0,95303.0,0.20977321]
[1732819309359,0.00143959,95304.0,95303.0,0.20963006]
[1732819309572,0.00143959,95304.0,95303.0,0.25163198]
[1732819309788,0.00143959,95304.0,95303.0,0.25577513]
[1732819310019,0.00143959,95304.0,95303.0,0.26861431]
[1732819310241,0.00143959,95304.0,95303.0,0.63991909]
[1732819310483,0.00143959,95304.0,95303.0,0.64491909]
[1732819310924,6e-05,95315.0,95314.0,0.104916]
[1732819311143,6e-05,95315.0,95314.0,0.20776121]
[1732819312493,6e-05,95315.0,95314.0,0.21676121]
[1732819313636,6e-05,95315.0,95314.0,0.21876121]
[1732819316201,6e-05,95315.0,95314.0,0.21676121]
[1732819316652,6e-05,95315.0,95314.0,0.21876121]
[1732819317311,6e-05,95315.0,95314.0,0.20976121]
[1732819317523,6e-05,95315.0,95314.0,0.21876121]
[1732819317749,6e-05,95315.0,95314.0,0.20976121]
[1732819318191,6e-05,95315.0,95314.0,0.21876121]
[1732819318880,6e-05,95315.0,95314.0,0.21676121]
[1732819319096,6e-05,95315.0,95314.0,0.21876121]
[1732819319625,6e-05,95315.0,95314.0,0.21676121]
[1732819319850,6e-05,95315.0,95314.0,0.21976121]
[1732819320302,6e-05,95315.0,95314.0,0.21076121]
[1732819320771,6e-05,95315.0,95314.0,0.21976121]
[1732819323359,0.00024526,95315.0,95314.0,0.21976121]
[1732819324836,0.00110606,95315.0,95314.0,0.21976121]
[1732819326473,0.00110606,95315.0,95314.0,0.11484521]
[1732819330270,0.00110606,95315.0,95314.0,0.54122774]
[1732819331173,0.00110606,95315.0,95314.0,0.12768184]
[1732819331393,0.00110606,95315.0,95314.0,0.54137522]
[1732819332286,0.00110606,95315.0,95314.0,0.12768184]
[1732819332501,0.00110606,95315.0,95314.0,0.54154334]
[1732819332711,0.00110606,95315.0,95314.0,0.12768184]
[1732819333626,0.00110606,95315.0,95314.0,0.23445468]
[1732819333845,0.00110606,95315.0,95314.0,0.33319784]
[1732819334288,0.00110606,95315.0,95314.0,0.48319784]
[1732819334530,0.0008617,95326.0,95325.0,0.254904]
[1732819334753,0.0008617,95326.0,95325.0,0.38074921]
[1732819335896,7e-07,95326.0,95325.0,0.38074921]
[1732819336116,0.0099928,95353.0,95347.0,0.10488]
[1732819336328,0.0008617,95361.0,95347.0,0.23072521]
[1732819336555,0.0008617,95361.0,95347.0,0.38072521]
[1732819337023,0.0008617,95361.0,95347.0,0.46282521]
[1732819337902,0.0008617,95361.0,95347.0,0.47182521]
[1732819338161,0.0008617,95361.0,95347.0,0.78681511]
[1732819338398,0.00014488,95349.0,95348.0,0.2224]
[1732819338623,8.8e-07,95350.0,95349.0,0.277877]
[1732819338858,8.8e-07,95350.0,95349.0,0.41309346]
[1732819339077,0.0008617,95361.0,95360.0,0.277865]
[1732819339294,0.0008617,95361.0,95360.0,0.38071021]
[1732819339533,0.0008617,95361.0,95360.0,0.69492105]
[1732819340022,0.0008617,95361.0,95360.0,0.38071021]
[1732819341375,0.0008617,95361.0,95360.0,0.35971021]
[1732819341589,0.0008617,95361.0,95360.0,0.35871021]
[1732819341811,0.0008617,95361.0,95360.0,0.7709015]
[1732819342032,0.0008617,95361.0,95360.0,0.35871021]
[1732819342278,0.0008617,95361.0,95360.0,0.77067418]
[1732819342540,0.0008617,95361.0,95360.0,0.35871021]
[1732819342726,0.0008617,95361.0,95360.0,0.38071021]
[1732819342944,0.0008617,95361.0,95360.0,0.38171021]
[1732819344042,0.0008617,95361.0,95360.0,0.46151021]
[1732819344259,7e-07,95361.0,95360.0,0.49570143]
[1732819344491,7e-07,95361.0,95360.0,0.5082324]
[1732819344732,7e-07,95361.0,95360.0,0.5092324]
[1732819344984,7e-07,95361.0,95360.0,0.47304118]
[1732819345263,7e-07,95361.0,95360.0,0.5082324]
[1732819345487,7e-07,95361.0,95360.0,0.5092324]
[1732819345715,0.0008617,95378.0,95360.0,0.36817618]
[1732819345934,0.0008617,95378.0,95368.0,0.38070121]
[1732819348011,0.0008617,95378.0,95368.0,0.35770121]
[1732819348229,0.0008617,95378.0,95368.0,0.35870121]
[1732819349153,0.0008617,95378.0,95368.0,0.35970121]
[1732819349394,0.0008617,95378.0,95368.0,0.38270121]
[1732819352637,0.0761,95375.0,95368.0,0.35970121]
[1732819353316,0.0008617,95378.0,95368.0,0.35970121]
[1732819353529,0.0008617,95378.0,95368.0,0.63761542]
[1732819354024,0.0008617,95378.0,95368.0,0.66061542]
[1732819354271,0.0008617,95378.0,95368.0,0.38170121]
[1732819354478,0.0044,95369.0,95368.0,0.65961542]
[1732819354706,0.0044,95369.0,95368.0,0.38070121]
[1732819354914,0.0004,95369.0,95368.0,0.38070121]
[1732819355142,0.0054,95369.0,95368.0,0.38070121]
[1732819355387,0.0044,95369.0,95368.0,0.38070121]
[1732819355820,0.0014,95369.0,95368.0,0.38970121]
[1732819356259,0.0024,95369.0,95368.0,0.39770121]
[1732819356520,0.0024,95369.0,95368.0,0.67561542]
[1732819356990,0.0014,95369.0,95368.0,0.67897488]
[1732819357233,0.0014,95369.0,95368.0,0.66661542]
[1732819357459,0.0024,95369.0,95368.0,0.41006067]
[1732819357678,0.0014,95369.0,95368.0,0.39306067]
[1732819357964,0.1302,95369.0,95368.0,0.22606067]
[1732819358203,0.1272,95369.0,95368.0,0.21370121]
[1732819358424,0.1272,95369.0,95368.0,0.20770121]
[1732819358642,0.1282,95369.0,95368.0,0.39796541]
[1732819358863,0.1272,95369.0,95368.0,0.39896541]
[1732819359300,0.1272,95369.0,95368.0,0.39296541]
[1732819359731,0.1272,95369.0,95368.0,0.39896541]
[1732819360389,0.1272,95369.0,95368.0,0.40796541]
[1732819360390,0.1282,95369.0,95368.0,0.40796541]
[1732819360616,0.1282,95369.0,95368.0,0.45433021]
[1732819361064,0.0466,95369.0,95368.0,0.45772041]
[1732819361276,0.0466,95369.0,95368.0,0.22009141]
[1732819361502,0.0474605,95369.0,95368.0,0.22809141]
[1732819361730,0.0474605,95369.0,95368.0,0.29649141]
[1732819361731,0.0012605,95369.0,95368.0,0.29649141]
[1732819361948,0.0012605,95369.0,95368.0,0.46849141]
[1732819362158,0.0012605,95369.0,95368.0,0.51944441]
[1732819362382,0.0012605,95369.0,95368.0,0.52244441]
[1732819362798,0.0012605,95369.0,95368.0,0.51944441]
[1732819363017,0.0022605,95369.0,95368.0,0.51944441]
[1732819363664,0.0022605,95369.0,95368.0,0.42104441]
[1732819364116,0.0022605,95369.0,95368.0,0.39104441]
[1732819364364,0.0012605,95369.0,95368.0,0.38204441]
[1732819364794,0.0012605,95369.0,95368.0,0.38304441]
[1732819365022,0.0022605,95369.0,95368.0,0.40265421]
[1732819365261,0.0022605,95369.0,95368.0,0.40165421]
[1732819365718,0.0012605,95369.0,95368.0,0.39365421]
[1732819365922,0.0092605,95369.0,95368.0,0.39465421]
[1732819366337,0.0092605,95369.0,95368.0,0.39265421]
[1732819366980,0.0092605,95369.0,95368.0,0.40510994]
[1732819367195,0.0092605,95369.0,95368.0,0.39265421]
[1732819367621,0.0092605,95369.0,95368.0,0.39365421]
[1732819367835,0.0172605,95369.0,95368.0,0.39465421]
[1732819368264,0.0172605,95369.0,95368.0,0.39365421]
[1732819368481,0.0172605,95369.0,95368.0,0.40611399]
[1732819368705,0.0172605,95369.0,95368.0,0.39465421]
[1732819368945,0.0172605,95369.0,95368.0,0.40711403]
[1732819369159,0.0092605,95369.0,95368.0,0.40511403]
[1732819369376,0.0092605,95369.0,95368.0,0.40611403]
[1732819369377,0.0012605,95369.0,95368.0,0.40611403]
[1732819369597,0.0092605,95369.0,95368.0,0.81740164]
[1732819370195,0.0092605,95369.0,95368.0,0.42280803]
[1732819370831,0.0012605,95369.0,95368.0,0.42180803]
[1732819371037,0.0092605,95369.0,95368.0,0.42280803]
[1732819371253,0.0092605,95369.0,95368.0,0.83367563]
[1732819371406,0.0092605,95369.0,95368.0,0.42280803]
[1732819375279,0.0092605,95369.0,95368.0,0.42452843]
[1732819375718,0.0062605,95369.0,95368.0,0.42452843]
[1732819380615,0.0062605,95369.0,95368.0,0.41206861]
[1732819380859,0.0840605,95369.0,95368.0,0.38906861]
[1732819381760,0.0840605,95369.0,95368.0,0.13421261]
[1732819381996,0.0840605,95369.0,95368.0,0.23906861]
[1732819382217,0.0840605,95369.0,95368.0,0.55463109]
[1732819382458,0.0840605,95369.0,95368.0,0.23906861]
[1732819382689,0.0840605,95369.0,95368.0,0.55463237]
[1732819382915,0.0778,95369.0,95368.0,0.55263237]
[1732819383138,0.0788,95369.0,95368.0,0.56562396]
[1732819383650,0.0788,95369.0,95368.0,0.56162396]
[1732819384126,0.0788,95369.0,95368.0,0.25206861]
[1732819384360,0.0477,95374.0,95368.0,0.13821261]
[1732819384591,0.0477,95374.0,95373.0,0.104851]
[1732819384798,0.0477,95374.0,95373.0,0.20769621]
[1732819385237,0.0477,95374.0,95373.0,0.20955185]
[1732819385444,0.0008617,95378.0,95377.0,0.104847]
[1732819385657,0.0008617,95378.0,95377.0,0.20769221]
[1732819386555,0.0793017,95381.0,95380.0,0.104843]
[1732819386785,0.0793017,95381.0,95380.0,0.20768821]
[1732819387965,0.0793017,95381.0,95380.0,0.21068821]
[1732819388395,0.0803017,95381.0,95380.0,0.21968821]
[1732819389659,0.0803017,95381.0,95380.0,0.63391692]
[1732819389885,0.001,95381.0,95380.0,0.63391692]
[1732819390104,0.001,95381.0,95380.0,0.21968821]
[1732819393967,0.001,95381.0,95380.0,0.23221808]
[1732819398175,0.00118484,95381.0,95380.0,0.23221808]
[1732819399851,0.04618484,95381.0,95380.0,0.23221808]
[1732819400497,0.04618484,95381.0,95380.0,0.23393828]
[1732819400902,0.04704494,95381.0,95380.0,0.23393828]
[1732819401651,0.12854494,95381.0,95380.0,0.23393828]
[1732819403200,0.12854494,95381.0,95380.0,0.22193828]
[1732819403201,0.12754494,95381.0,95380.0,0.22193828]
[1732819403434,0.12754494,95381.0,95380.0,0.22493828]
[1732819403651,0.12854494,95381.0,95380.0,0.23393828]
[1732819403878,0.12854494,95381.0,95380.0,0.23093828]
[1732819404308,0.12854494,95381.0,95380.0,0.23493828]
[1732819408473,0.12854494,95381.0,95380.0,0.24273434]
[1732819408705,0.12854494,95381.0,95380.0,0.13789134]
[1732819408964,0.12854494,95381.0,95380.0,0.24273434]
[1732819411168,0.12858494,95381.0,95380.0,0.24273434]
[1732819415997,0.12858494,95381.0,95380.0,0.13789134]
[1732819416439,0.12858494,95381.0,95380.0,0.24273434]
[1732819416876,0.24342694,95381.0,95380.0,0.02251626]
[1732819416882,0.25342694,95381.0,95380.0,0.02251626]
[1732819417585,0.24342694,95381.0,95380.0,0.0147202]
[1732819417812,0.25342694,95381.0,95380.0,0.0147202]
[1732819418043,0.25242694,95381.0,95380.0,0.0057202]
[1732819418262,0.25242694,95381.0,95380.0,0.23759803]
[1732819418477,0.25342694,95381.0,95380.0,0.23559803]
[1732819418927,0.25242694,95381.0,95380.0,0.23959803]
[1732819419158,0.24242694,95381.0,95380.0,0.0017202]
[1732819419386,0.24242694,95381.0,95380.0,0.0057202]
[1732819419602,0.25242694,95381.0,95380.0,0.0057202]
[1732819421358,0.23242694,95381.0,95380.0,0.0057202]
[1732819421548,0.24242694,95381.0,95380.0,0.0057202]
[1732819422026,0.13758494,95381.0,95380.0,0.0057202]
[1732819422245,0.00108494,95381.0,95380.0,0.20940841]
[1732819422478,0.00208494,95381.0,95380.0,0.21240841]
[1732819422700,0.00208494,95381.0,95380.0,0.49290339]
[1732819422926,0.00108494,95381.0,95380.0,0.48990339]
[1732819423143,0.00108494,95381.0,95380.0,0.49590339]
[1732819424642,0.00108494,95381.0,95380.0,0.48990339]
[1732819424854,0.00208494,95381.0,95380.0,0.49990339]
[1732819425354,0.00208494,95381.0,95380.0,0.48990339]
[1732819425568,0.00308494,95381.0,95380.0,0.50190339]
[1732819425793,0.01308494,95381.0,95380.0,0.50190339]
[1732819427142,0.01308494,95381.0,95380.0,0.39706039]
[1732819428566,0.01308494,95381.0,95380.0,0.50190339]
[1732819428787,0.01308494,95381.0,95380.0,0.39706039]
[1732819431159,0.01308494,95381.0,95380.0,0.50190339]
[1732819431964,0.01308494,95381.0,95380.0,0.3970521]
[1732819432206,0.01308494,95381.0,95380.0,0.39705485]
[1732819434020,0.00308494,95381.0,95380.0,0.39705485]
[1732819434227,0.01308494,95381.0,95380.0,0.39705485]
[1732819434357,0.00308494,95381.0,95380.0,0.39705485]
[1732819434564,0.01308494,95381.0,95380.0,0.39705485]
[1732819434778,0.01308494,95381.0,95380.0,0.50189785]
[1732819436200,0.01308494,95381.0,95380.0,0.22140841]
[1732819437587,0.00308494,95381.0,95380.0,0.22140841]
[1732819437810,0.01308494,95381.0,95380.0,0.22140841]
[1732819449137,0.00308494,95381.0,95380.0,0.22140841]
[1732819449370,0.01308494,95381.0,95380.0,0.22140841]
[1732819451255,0.01308494,95381.0,95380.0,0.11656541]
[1732819451377,0.01308494,95381.0,95380.0,0.22140841]
[1732819452715,0.00308494,95381.0,95380.0,0.22140841]
[1732819453000,0.01308494,95381.0,95380.0,0.22140841]
[1732819455337,0.01308494,95381.0,95380.0,0.11656541]
[1732819455569,0.01308494,95381.0,95380.0,0.22140841]
[1732819459884,0.01308494,95381.0,95380.0,0.63560771]
[1732819460135,0.00308494,95381.0,95380.0,0.30390841]
[1732819460366,0.00308494,95381.0,95380.0,0.45390841]
[1732819461344,0.00108494,95381.0,95380.0,0.44190841]
[1732819461821,0.00208494,95381.0,95380.0,0.45090841]
[1732819462052,0.00208494,95381.0,95380.0,0.44190841]
[1732819462272,0.00308494,95381.0,95380.0,0.45090841]
[1732819462495,0.00308494,95381.0,95380.0,0.44190841]
[1732819462496,0.00208494,95381.0,95380.0,0.44190841]
[1732819462715,0.00208494,95381.0,95380.0,0.44490841]
[1732819463911,0.00208494,95381.0,95380.0,0.45390841]
[1732819464124,0.00208494,95381.0,95380.0,0.45090841]
[1732819464475,0.00208494,95381.0,95380.0,0.45690841]
[1732819465327,0.00208494,95381.0,95380.0,0.47990841]
[1732819465957,0.00208494,95381.0,95380.0,0.47390841]
[1732819466396,0.00208494,95381.0,95380.0,0.47990841]
[1732819466866,0.00108494,95381.0,95380.0,0.46490841]
[1732819467129,0.00108494,95381.0,95380.0,0.47190841]
[1732819467340,0.00108494,95381.0,95380.0,0.48090841]
[1732819467553,0.00108494,95381.0,95380.0,0.47390841]
[1732819468271,0.00108494,95381.0,95380.0,0.46490841]
[1732819468487,0.00108494,95381.0,95380.0,0.47390841]
[1732819468916,0.00108494,95381.0,95380.0,0.55345733]
[1732819469139,0.00108494,95381.0,95380.0,0.86856951]
[1732819469369,0.00108494,95381.0,95380.0,0.86832293]
[1732819469598,0.00108494,95381.0,95380.0,0.87432293]
[1732819470064,0.00108494,95381.0,95380.0,0.85932293]
[1732819470316,0.00208494,95381.0,95380.0,0.86832293]
[1732819470528,0.00208494,95381.0,95380.0,0.55345733]
[1732819470768,0.00108494,95381.0,95380.0,0.54445733]
[1732819470988,0.00108494,95381.0,95380.0,0.54545733]
[1732819471226,0.00308494,95381.0,95380.0,0.54545733]
[1732819472125,0.00308494,95381.0,95380.0,0.54645733]
[1732819472801,0.00108494,95381.0,95380.0,0.54545733]
[1732819473230,0.00308494,95381.0,95380.0,0.54645733]
[1732819474119,0.00108494,95381.0,95380.0,0.54545733]
[1732819474354,0.00308494,95381.0,95380.0,0.54645733]
[1732819475024,0.00308494,95381.0,95380.0,0.54545733]
[1732819475242,0.00308494,95381.0,95380.0,0.54645733]
[1732819475469,0.00308494,95381.0,95380.0,0.54545733]
[1732819475943,0.00308494,95381.0,95380.0,0.54645733]
[1732819476598,0.00108494,95381.0,95380.0,0.54545733]
[1732819476798,0.00308494,95381.0,95380.0,0.54645733]
[1732819477234,0.00308494,95381.0,95380.0,0.54545733]
[1732819477436,0.00108494,95381.0,95380.0,0.54545733]
[1732819477647,0.00308494,95381.0,95380.0,0.54645733]
[1732819485222,0.00308494,95381.0,95380.0,0.49945733]
[1732819487214,0.00308494,95381.0,95380.0,0.46690841]
[1732819498125,0.00308494,95381.0,95380.0,0.38440841]
[1732819500937,0.12928494,95381.0,95380.0,0.36140841]
[1732819502231,0.12928494,95381.0,95380.0,0.38340841]
[1732819502683,0.12728494,95381.0,95380.0,0.39140841]
[1732819502913,0.12828494,95381.0,95380.0,0.39940841]
[1732819504227,0.05068494,95381.0,95380.0,0.39940841]
[1732819520990,0.00208494,95381.0,95380.0,0.39940841]
[1732819521946,0.0483617,95385.0,95384.0,0.104839]
[1732819522188,0.0483617,95385.0,95384.0,0.62158802]
[1732819522411,0.0483617,95385.0,95384.0,0.64458802]
[1732819522659,0.0483617,95385.0,95384.0,0.65114589]
[1732819523561,0.0493617,95385.0,95384.0,0.65814589]
[1732819523793,0.0503617,95385.0,95384.0,0.66714589]
[1732819531131,0.0503617,95385.0,95384.0,0.25324208]
[1732819532939,0.1551997,95385.0,95384.0,0.02255787]
[1732819533177,0.1551997,95385.0,95384.0,0.3029008]
[1732819533178,0.2357997,95385.0,95384.0,0.3029008]
[1732819533417,0.2357997,95385.0,95384.0,0.02255787]
[1732819534113,0.2347997,95385.0,95384.0,0.007]
[1732819534332,0.2347997,95385.0,95384.0,0.009]
[1732819534576,0.2347997,95385.0,95384.0,0.007]
[1732819534782,0.0468,95383.0,95381.0,0.28034293]
[1732819534995,0.151641,95382.0,95381.0,0.28034293]
[1732819535416,0.151641,95382.0,95381.0,0.28030515]
[1732819535629,0.151642,95381.0,95380.0,0.0017202]
[1732819536299,0.151642,95381.0,95380.0,0.00827841]
[1732819538149,0.230942,95381.0,95380.0,0.00827841]
[1732819538378,0.230942,95381.0,95380.0,0.01527841]
[1732819538997,0.230942,95381.0,95380.0,0.01427841]
[1732819539423,0.230942,95381.0,95380.0,0.29564234]
[1732819539670,0.230942,95381.0,95380.0,0.01527841]
[1732819539877,0.230942,95381.0,95380.0,0.00927841]
[1732819540293,0.230942,95381.0,95380.0,0.0087202]
[1732819540733,0.230942,95381.0,95380.0,0.0077202]
[1732819541192,0.230942,95381.0,95380.0,0.0087202]
[1732819541832,0.230942,95381.0,95380.0,0.0077202]
[1732819542066,0.240942,95381.0,95380.0,0.0077202]
[1732819542277,0.250942,95381.0,95380.0,0.0077202]
[1732819542486,0.250942,95381.0,95380.0,0.0087202]
[1732819542701,0.250942,95381.0,95380.0,0.19568136]
[1732819543706,0.250942,95381.0,95380.0,0.0087202]
[1732819546687,0.250942,95381.0,95380.0,0.14888734]
[1732819548488,0.250942,95381.0,95380.0,0.14907218]
[1732819548702,0.250942,95381.0,95380.0,0.00890504]
[1732819548933,0.250982,95381.0,95380.0,0.00890504]
[1732819549793,0.24858035,95381.0,95380.0,0.00890504]
[1732819551277,0.24858035,95381.0,95380.0,0.00190504]
[1732819551503,0.24958035,95381.0,95380.0,0.00190504]
[1732819551743,0.25158035,95381.0,95380.0,0.00190504]
[1732819552168,0.25458035,95381.0,95380.0,0.00190504]
[1732819553630,0.24858035,95381.0,95380.0,0.00190504]
[1732819553847,0.24958035,95381.0,95380.0,0.00190504]
[1732819554067,0.24858035,95381.0,95380.0,0.00190504]
[1732819554537,0.25258035,95381.0,95380.0,0.00190504]
[1732819555020,0.24958035,95381.0,95380.0,0.00190504]
[1732819555459,0.25158035,95381.0,95380.0,0.00190504]
[1732819561308,0.24158035,95381.0,95380.0,0.00190504]
[1732819568656,0.25158035,95381.0,95380.0,0.00190504]
[1732819572121,0.25158035,95381.0,95380.0,0.00479004]
[1732819572356,0.25158035,95381.0,95380.0,0.00679004]
[1732819576743,0.25244215,95381.0,95380.0,0.00679004]
[1732819576993,0.50244215,95381.0,95380.0,0.00679004]
[1732819585060,0.50044215,95381.0,95380.0,0.00479004]
[1732819588425,0.60328736,95381.0,95380.0,0.00479004]
[1732819590751,0.62448455,95381.0,95380.0,0.00479004]
[1732819595750,0.60328736,95381.0,95380.0,0.00479004]
[1732819598721,0.63528869,95381.0,95380.0,0.00479004]
[1732819599645,0.65528869,95381.0,95380.0,0.00479004]
[1732819600098,0.83385346,95381.0,95380.0,4e-08]
[1732819600535,0.85685346,95381.0,95380.0,6e-07]
[1732819600722,0.85585346,95381.0,95380.0,6e-07]
[1732819600931,0.86485346,95381.0,95380.0,6e-07]
[1732819601352,0.86485346,95381.0,95368.0,0.0174144]
[1732819601353,0.524555,95369.0,95368.0,0.0174144]
[1732819601595,0.65940154,95369.0,95368.0,0.0174144]
[1732819602928,0.64940154,95369.0,95368.0,0.0174144]
[1732819603133,0.65940154,95369.0,95368.0,0.0174144]
[1732819603338,0.66440154,95369.0,95368.0,0.0174144]
[1732819603548,0.66840154,95369.0,95368.0,0.0174144]
[1732819603758,0.65840154,95369.0,95368.0,0.0174144]
[1732819604015,0.66840154,95369.0,95368.0,0.0174144]
[1732819608553,0.66846311,95369.0,95368.0,0.0174144]
[1732819610761,0.68979794,95369.0,95368.0,0.0174144]
[1732819615701,0.83979794,95369.0,95368.0,4e-07]
[1732819615920,0.81846311,95369.0,95368.0,4e-07]
[1732819617068,0.94429457,95369.0,95368.0,4e-07]
[1732819618151,0.93529457,95369.0,95368.0,4e-07]
[1732819618413,0.94429457,95369.0,95368.0,4e-07]
[1732819618627,0.95229457,95369.0,95368.0,4e-07]
[1732819619088,0.97782224,95369.0,95368.0,4e-07]
[1732819619518,0.9832969,95369.0,95368.0,4e-07]
[1732819619734,0.7332969,95369.0,95368.0,4e-07]
[1732819619949,0.9832969,95369.0,95368.0,4e-07]
[1732819620617,1.00470925,95369.0,95368.0,4e-07]
[1732819621482,0.374895,95333.0,95332.0,0.001721]
[1732819622357,0.124907,95322.0,95321.0,0.032421]
[1732819622580,0.124916,95314.0,95313.0,0.0458]
[1732819624158,0.114916,95314.0,95313.0,0.0458]
[1732819624398,0.124956,95314.0,95313.0,0.0458]
[1732819624677,0.125956,95314.0,95313.0,0.0478]
[1732819625141,0.126956,95314.0,95313.0,0.0498]
[1732819625621,0.125956,95314.0,95313.0,0.002]
[1732819625843,0.125956,95314.0,95310.0,0.0765]
[1732819625844,0.114919,95311.0,95310.0,0.0765]
[1732819628179,0.115919,95311.0,95310.0,0.0765]
[1732819628402,0.116919,95311.0,95310.0,0.0795]
[1732819628867,0.126919,95311.0,95310.0,0.0795]
[1732819629312,0.126919,95311.0,95310.0,0.003]
[1732819632583,0.126959,95311.0,95310.0,0.003]
[1732819636013,0.126959,95311.0,95310.0,0.0047248]
[1732819654272,0.12301139,95311.0,95310.0,0.0047248]
[1732819661824,0.12301139,95311.0,95310.0,0.09865613]
[1732819662056,0.12301139,95311.0,95310.0,0.0047248]
[1732819663337,0.12301139,95311.0,95310.0,0.19258747]
[1732819664198,0.12301139,95311.0,95310.0,0.33859001]
[1732819664199,0.00204,95311.0,95310.0,0.33859001]
[1732819664419,0.00204,95311.0,95310.0,0.34515363]
[1732819664620,0.00204,95311.0,95310.0,0.33859001]
[1732819665067,0.00104,95311.0,95310.0,0.33859001]
[1732819665307,4e-05,95311.0,95310.0,0.33559001]
[1732819665538,4e-05,95311.0,95310.0,0.33859001]
[1732819665746,0.00104,95311.0,95310.0,0.34159001]
[1732819666816,4e-05,95311.0,95310.0,0.33559001]
[1732819667280,0.00204,95311.0,95310.0,0.34959001]
[1732819669101,0.00204,95311.0,95310.0,0.37259001]
[1732819669535,0.00204,95311.0,95310.0,0.52259001]
[1732819669973,0.00104,95311.0,95310.0,0.51359001]
[1732819670187,4e-05,95311.0,95310.0,0.50859001]
[1732819670414,0.00204,95311.0,95310.0,0.52359001]
[1732819670633,0.00104,95311.0,95310.0,0.51459001]
[1732819670896,4e-05,95311.0,95310.0,0.52145529]
[1732819671122,0.00104,95311.0,95310.0,0.53045529]
[1732819671760,0.00104,95311.0,95310.0,0.53745529]
[1732819671761,0.00204,95311.0,95310.0,0.53745529]
[1732819673528,4e-05,95314.0,95313.0,0.277917]
[1732819673743,4e-05,95314.0,95313.0,0.38076221]
[1732819674680,4e-05,95314.0,95313.0,0.50576221]
[1732819675330,0.00104,95314.0,95313.0,0.50676221]
[1732819676381,0.01004,95314.0,95313.0,0.50776221]
[1732819676643,0.00904,95314.0,95313.0,0.50676221]
[1732819676867,4e-05,95314.0,95313.0,0.50576221]
[1732819677105,8e-05,95314.0,95313.0,0.50576221]
[1732819677313,0.00208,95314.0,95313.0,0.50576221]
[1732819681156,0.00208,95314.0,95313.0,0.51232395]
[1732819681597,0.00208,95314.0,95313.0,0.53360729]
[1732819682037,0.00208,95314.0,95313.0,0.51232395]
[1732819682275,0.00208,95314.0,95313.0,0.92631565]
[1732819682778,0.00208,95314.0,95313.0,0.51232395]
[1732819682963,0.00208,95314.0,95313.0,0.38732395]
[1732819683196,0.00208,95314.0,95313.0,0.36432395]
[1732819683450,0.00208,95314.0,95313.0,0.64475605]
[1732819683951,0.00208,95314.0,95313.0,0.63819431]
[1732819685270,0.00208,95314.0,95313.0,0.20776221]
[1732819685522,0.0029424,95314.0,95313.0,0.20776221]
[1732819686477,0.0009424,95314.0,95313.0,0.20776221]
[1732819686721,0.0009424,95314.0,95313.0,0.22176221]
[1732819690140,0.0881424,95314.0,95313.0,0.014]
[1732819690364,0.2030584,95314.0,95313.0,0.014]
[1732819691226,0.2030584,95314.0,95313.0,0.009]
[1732819691469,0.104918,95312.0,95311.0,0.09525493]
[1732819692369,0.104918,95312.0,95311.0,0.0017248]
[1732819693028,0.01,95313.0,95311.0,0.0017248]
[1732819693242,0.104918,95312.0,95311.0,0.0017248]
[1732819693722,0.104918,95312.0,95311.0,0.0037248]
[1732819693939,0.104918,95312.0,95311.0,0.0097248]
[1732819694188,0.104918,95312.0,95311.0,0.0077248]
[1732819694430,0.104918,95312.0,95311.0,0.0087248]
[1732819695586,0.104918,95312.0,95311.0,0.14905357]
[1732819695804,0.01,95313.0,95311.0,0.14805357]
[1732819696028,0.114917,95313.0,95311.0,0.14805357]
[1732819696262,0.114917,95313.0,95311.0,0.15005357]
[1732819696925,0.114917,95313.0,95311.0,0.14805357]
[1732819697143,0.114917,95313.0,95311.0,0.14305357]
[1732819697572,0.114917,95313.0,95312.0,0.14032877]
[1732819698728,0.01,95313.0,95311.0,0.0077248]
[1732819698959,0.01,95313.0,95311.0,0.0067248]
[1732819698960,0.104918,95312.0,95311.0,0.0067248]
[1732819699637,0.104918,95312.0,95311.0,0.19382983]
[1732819699877,0.104918,95312.0,95311.0,0.18882983]
[1732819700341,0.104918,95312.0,95311.0,0.18893316]
[1732819700565,0.104918,95312.0,95311.0,0.19093316]
[1732819700786,0.104918,95312.0,95311.0,0.19593316]
[1732819701658,0.104918,95312.0,95311.0,0.0087248]
[1732819702151,0.104918,95312.0,95311.0,0.19592033]
[1732819702390,0.114918,95312.0,95311.0,0.19592033]
[1732819702630,0.114918,95312.0,95311.0,0.0087248]
[1732819703587,0.01,95312.0,95311.0,0.0087248]
[1732819703835,0.01,95312.0,95311.0,0.1136438]
[1732819704285,0.02,95313.0,95312.0,0.104918]